bitfinex/quotes_ETHUSD_20220201
["timestamp","ask_amount","ask_price","bid_price","bid_amount"]
[1643694786520,3.2836,2740.1,2739.3,0.1824]
[1643694786521,5.12754924,2740.1,2739.3,0.1824]
[1643694786721,5.12754924,2740.1,2739.3,1.4824]
[1643694786922,5.12754924,2740.1,2739.8,0.93357979]
[1643694787124,1.84394924,2740.1,2739.4,0.33543877]
[1643694787325,1.84394924,2740.1,2739.8,0.68189022]
[1643694787535,0.1824,2740.0,2739.4,0.33543877]
[1643694787920,0.84914924,2740.0,2739.4,0.33543877]
[1643694788135,2.8030836,2740.0,2739.4,0.33543877]
[1643694788329,0.84914924,2740.0,2739.8,0.9125716]
[1643694788523,0.1824,2740.0,2739.8,0.9125716]
[1643694789126,0.1824,2740.0,2739.8,1.85667034]
[1643694789532,0.66674924,2740.1,2739.8,1.85667034]
[1643694790175,0.05953786,2739.9,2739.8,1.85667034]
[1643694795025,0.7262871,2740.1,2739.8,1.85667034]
[1643694797594,0.05953786,2740.1,2739.8,1.85667034]
[1643694799581,0.7262871,2740.1,2739.8,1.85667034]
[1643694801186,0.05953786,2740.1,2739.8,1.85667034]
[1643694804433,2.68642916,2740.1,2739.7,1.8251431]
[1643694804635,3.59908916,2740.1,2739.7,1.8251431]
[1643694805064,1.6389471,2740.1,2739.7,1.8251431]
[1643694806068,1.6389471,2740.1,2739.7,2.71435335]
[1643694806271,1.53882325,2740.0,2739.7,2.71435335]
[1643694807076,1.53882325,2740.0,2739.7,1.07296466]
[1643694810130,0.05953786,2739.9,2739.7,1.07296466]
[1643694810345,1.53882325,2739.8,2739.7,1.07296466]
[1643694815077,1.59826256,2739.8,2739.7,1.07296466]
[1643694816530,1.59826256,2739.8,2739.7,1.25536466]
[1643694817533,1.59826256,2739.8,2739.7,1.07296466]
[1643694819850,1.59826256,2739.8,2739.7,1.05323816]
[1643694820077,1.59826256,2739.8,2739.7,1.35323816]
[1643694820676,1.59826256,2739.8,2739.7,4.85323816]
[1643694820875,1.59826256,2739.8,2739.7,7.0293341]
[1643694821076,1.59826256,2739.8,2739.7,4.85323816]
[1643694821339,1.59826256,2739.8,2739.7,1.35323816]
[1643694823513,0.84914924,2740.5,2739.8,3.35]
[1643694823686,0.84914924,2740.8,2740.0,0.9122601]
[1643694823951,0.66674924,2740.8,2740.1,2.83874978]
[1643694824133,5.35927876,2741.1,2740.1,2.83874978]
[1643694824134,0.66674924,2741.0,2740.1,2.83874978]
[1643694824338,0.84914924,2741.0,2740.2,1.0]
[1643694824577,0.84914924,2741.0,2740.4,0.32609061]
[1643694824740,0.1824,2741.0,2740.9,0.83580491]
[1643694825934,0.84914924,2741.0,2740.9,0.83580491]
[1643694826136,0.84914924,2741.2,2740.9,0.83580491]
[1643694826336,0.66674924,2741.2,2740.9,0.83580491]
[1643694827133,0.66674924,2741.2,2741.1,0.89848759]
[1643694827335,1.75874924,2741.2,2741.1,0.89848759]
[1643694827986,1.70874924,2741.2,2741.1,0.89848759]
[1643694828686,1.092,2741.2,2741.1,0.89848759]
[1643694829092,1.2744,2741.2,2741.1,0.89848759]
[1643694829491,4.1744,2741.2,2741.1,0.89848759]
[1643694830488,3.992,2741.2,2741.1,0.89848759]
[1643694831103,1.042,2741.2,2741.1,0.89848759]
[1643694831750,1.042,2741.2,2741.1,1.42248759]
[1643694832538,1.042,2741.2,2741.1,0.89848759]
[1643694832750,1.042,2741.2,2741.0,0.9120206]
[1643694832940,0.1824,2741.1,2741.0,0.9120206]
[1643694833155,1.042,2741.2,2741.0,0.9120206]
[1643694833540,1.2244,2741.4,2741.0,0.9120206]
[1643694833739,1.042,2741.4,2741.0,0.9120206]
[1643694834156,1.042,2741.4,2741.1,0.75032511]
[1643694837776,1.042,2741.4,2741.0,0.9120206]
[1643694837977,1.042,2741.2,2741.0,0.9120206]
[1643694838828,0.1824,2741.1,2741.0,0.9120206]
[1643694839034,0.1824,2741.1,2740.7,0.1822]
[1643694839035,0.992,2741.0,2740.7,0.1822]
[1643694839238,7.642,2740.8,2740.7,0.1822]
[1643694840236,1.1744,2740.7,2739.9,0.89343402]
[1643694840483,0.992,2740.6,2739.7,0.13819997]
[1643694840652,0.1824,2740.5,2740.1,1.8247707]
[1643694841238,0.992,2740.4,2740.1,1.8247707]
[1643694841440,1.90261785,2740.4,2740.1,1.8247707]
[1643694841850,0.992,2740.4,2740.1,1.8247707]
[1643694842244,0.992,2740.4,2740.1,2.0071707]
[1643694842451,0.992,2740.4,2740.2,0.34737339]
[1643694842682,0.992,2740.4,2740.1,1.8247707]
[1643694843616,0.992,2740.2,2740.1,1.8247707]
[1643694843786,0.992,2740.2,2740.1,2.19024306]
[1643694844185,0.992,2740.6,2740.1,2.19024306]
[1643694844384,0.992,2740.4,2740.1,2.19024306]
[1643694844605,1.165,2740.7,2740.1,2.19024306]
[1643694844606,0.992,2740.2,2740.1,2.19024306]
[1643694844787,2.53051192,2740.2,2740.1,2.19024306]
[1643694845785,2.53051192,2740.2,2740.1,1.8247707]
[1643694848240,0.992,2740.2,2740.1,0.1824]
[1643694850682,0.992,2740.2,2740.1,2.93133787]
[1643694850876,0.992,2740.2,2740.1,3.23133787]
[1643694851077,0.992,2740.2,2740.1,1.4824]
[1643694851273,0.992,2740.2,2740.1,26.82226]
[1643694851478,0.992,2740.2,2740.1,26.52226]
[1643694851681,0.992,2740.2,2740.1,26.82226]
[1643694852128,0.992,2740.2,2740.1,27.34626]
[1643694852689,0.992,2740.2,2740.1,27.04626]
[1643694853477,0.992,2740.2,2740.1,26.74626]
[1643694853689,0.992,2740.2,2740.1,0.7064]
[1643694853940,0.992,2740.2,2740.1,0.1824]
[1643694855139,0.992,2740.2,2740.1,2.8824]
[1643694855647,0.992,2740.2,2740.1,24.5224]
[1643694855833,0.992,2740.2,2740.1,4.1824]
[1643694856031,0.992,2740.2,2740.1,25.5224]
[1643694856329,0.992,2740.2,2740.1,4.1824]
[1643694856654,0.992,2740.2,2740.1,1.4824]
[1643694857230,0.1824,2741.0,2740.2,2.7]
[1643694857456,1.53823213,2740.9,2740.4,0.91209]
[1643694857701,1.53823213,2740.8,2740.5,2.7361267]
[1643694857883,1.53823213,2740.7,2740.6,0.3]
[1643694858084,5.14522812,2741.4,2740.6,0.3]
[1643694858085,1.53823213,2741.0,2740.6,0.3]
[1643694858279,1.53823213,2740.9,2740.7,0.72090877]
[1643694858537,1.53823213,2740.8,2740.7,0.72090877]
[1643694858697,1.53823213,2741.2,2740.7,2.54501037]
[1643694858880,0.1824,2741.1,2740.7,2.54501037]
[1643694859082,1.53823213,2741.0,2740.7,2.54501037]
[1643694859287,0.1824,2741.3,2740.9,21.34]
[1643694859481,0.1824,2741.3,2740.8,3.94495044]
[1643694859482,0.1824,2741.6,2741.1,21.34]
[1643694859697,0.68612812,2741.8,2741.2,1.87065052]
[1643694859884,0.68612812,2741.8,2741.2,3.17065052]
[1643694860099,0.68612812,2741.9,2741.6,0.35482818]
[1643694860297,0.1822,2741.8,2741.4,1.10586724]
[1643694860484,0.86832812,2741.8,2741.6,0.9118212]
[1643694860697,0.68612812,2741.8,2741.6,0.9118212]
[1643694861088,0.68532132,2741.8,2741.6,0.9118212]
[1643694861336,0.1822,2741.9,2741.6,0.9118212]
[1643694861534,0.91427876,2742.1,2741.6,0.9118212]
[1643694861535,0.1822,2742.0,2741.6,0.9118212]
[1643694861937,0.1822,2742.0,2741.9,0.36395345]
[1643694862150,3.8822,2742.0,2741.9,0.36395345]
[1643694863042,4.2822,2742.0,2741.8,0.9118936]
[1643694863541,4.1,2742.0,2741.8,0.9118936]
[1643694863741,0.1822,2741.9,2741.5,1.8236424]
[1643694863945,1.09647876,2741.9,2741.5,1.8236424]
[1643694864144,0.83085128,2741.6,2741.5,1.8236424]
[1643694864353,1.01305128,2741.6,2741.4,1.8239642]
[1643694864544,0.1822,2741.5,2741.3,0.1822]
[1643694865392,0.1822,2741.5,2741.1,1.8241221]
[1643694866998,0.1822,2741.5,2740.5,0.1823]
[1643694867195,0.1822,2741.5,2740.3,0.1824]
[1643694867196,1.62047876,2741.5,2740.3,0.1824]
[1643694867790,1.62047876,2741.5,2740.7,0.37882941]
[1643694868004,2.53270876,2741.5,2740.7,1.25346621]
[1643694868201,2.53270876,2741.5,2740.7,3.07784981]
[1643694868827,0.91228,2741.3,2740.7,3.07784981]
[1643694869029,0.78739648,2741.1,2740.7,1.8243836]
[1643694869232,2.0,2741.0,2740.5,1.8245225]
[1643694869436,2.1824,2741.0,2740.3,0.1824]
[1643694869836,0.1824,2741.0,2740.3,0.1824]
[1643694870728,1.09479,2741.0,2740.3,0.1824]
[1643694870929,1.82502,2740.8,2740.3,0.1824]
[1643694871131,0.1824,2740.7,2740.3,0.1824]
[1643694871531,2.21498246,2740.7,2740.3,0.1824]
[1643694871730,0.68474654,2740.6,2740.3,0.1824]
[1643694871931,2.21498246,2740.7,2740.1,1.3812337]
[1643694871932,2.03258246,2740.7,2740.1,1.3812337]
[1643694872136,2.00736,2740.8,2740.1,2.2936866]
[1643694872331,1.09485,2740.8,2740.1,2.2936866]
[1643694872792,1.94799376,2740.7,2740.1,2.2936866]
[1643694872989,2.67523624,2740.7,2740.1,2.2936866]
[1643694873792,2.67523624,2740.7,2740.1,1.87098949]
[1643694873991,0.1824,2740.6,2740.1,1.87098949]
[1643694874592,0.1824,2740.6,2740.1,0.95853659]
[1643694875192,1.63972248,2740.7,2740.1,0.95853659]
[1643694875392,2.55220248,2740.7,2740.1,1.87098319]
[1643694875592,2.55220248,2740.7,2740.1,1.68858319]
[1643694875992,1.82496,2740.7,2740.1,1.68858319]
[1643694876331,0.1824,2740.9,2740.1,3.57810483]
[1643694876531,4.44875275,2741.3,2740.2,0.1824]
[1643694876532,0.68752299,2741.1,2740.2,0.1824]
[1643694876731,0.1824,2741.0,2740.2,0.1824]
[1643694876933,0.1824,2741.0,2740.8,0.31621307]
[1643694877136,0.68752299,2741.2,2740.9,0.73055636]
[1643694877337,7.6224,2741.4,2740.9,0.73055636]
[1643694877338,0.68752299,2741.4,2740.9,0.91295636]
[1643694877549,0.68752299,2741.6,2740.9,2.12497056]
[1643694877735,0.68752299,2741.7,2740.9,3.12497056]
[1643694877939,0.68752299,2741.7,2740.9,5.12497056]
[1643694878143,0.68752299,2741.7,2741.4,0.3558583]
[1643694878342,0.68752299,2741.7,2741.5,0.1822]
[1643694878537,0.68752299,2741.7,2741.4,0.3558583]
[1643694878740,0.68752299,2741.7,2741.4,1.03218929]
[1643694878937,0.68752299,2741.7,2741.0,0.1822]
[1643694879138,0.68752299,2741.6,2741.3,1.8239665]
[1643694879338,0.1822,2741.8,2741.3,1.8239665]
[1643694879339,1.53801561,2741.5,2741.3,1.8239665]
[1643694879538,0.68752299,2741.7,2741.3,1.8239665]
[1643694879539,1.53801561,2741.4,2741.3,1.8239665]
[1643694879738,2.2255386,2741.6,2741.3,1.8239665]
[1643694879940,1.53801561,2741.5,2741.3,2.7536989]
[1643694880180,1.53801561,2741.4,2741.3,1.52815836]
[1643694880382,0.68752299,2741.6,2741.3,1.52815836]
[1643694881087,0.68752299,2741.4,2740.7,2.9182519]
[1643694881289,2.26929601,2741.3,2740.7,2.7360519]
[1643694881490,1.53801561,2741.2,2740.7,2.7360519]
[1643694881883,1.53801561,2741.1,2740.7,2.7360519]
[1643694882086,1.53801561,2741.0,2740.7,4.57564745]
[1643694882385,1.53801561,2740.9,2740.7,4.57564745]
[1643694882784,1.53801561,2741.1,2740.7,1.83959555]
[1643694882985,1.53801561,2741.0,2740.7,1.83959555]
[1643694883285,1.53801561,2740.9,2740.7,1.83959555]
[1643694883483,1.53801561,2740.8,2740.7,1.83959555]
[1643694884130,1.53801561,2741.1,2740.7,1.83959555]
[1643694885236,1.53801561,2741.1,2740.7,0.9122439]
[1643694886137,3.49118311,2741.1,2740.7,0.9122439]
[1643694886347,1.53801561,2741.0,2740.7,0.9122439]
[1643694886545,1.53801561,2740.9,2740.7,0.9122439]
[1643694886739,1.53801561,2740.8,2740.7,0.9122439]
[1643694886940,1.53801561,2741.1,2740.7,0.9122439]
[1643694889981,1.53801561,2741.1,2740.7,2.7365924]
[1643694890192,1.53801561,2741.1,2740.8,0.1824]
[1643694890585,1.53801561,2741.2,2740.8,0.1824]
[1643694890782,1.53801561,2741.1,2740.8,0.1824]
[1643694890980,2.2255386,2741.4,2740.8,0.1824]
[1643694891185,0.74828538,2741.2,2740.8,0.1824]
[1643694891428,1.53801561,2741.1,2740.7,2.7365924]
[1643694891827,1.53801561,2741.0,2740.7,2.7365924]
[1643694892030,0.68752299,2741.2,2740.7,2.7365924]
[1643694892031,1.53801561,2740.9,2740.7,2.7365924]
[1643694892234,1.53801561,2740.8,2740.7,2.7365924]
[1643694892433,1.53801561,2740.8,2740.7,1.8243485]
[1643694892631,0.68752299,2741.2,2740.7,1.8243485]
[1643694892834,2.2255386,2741.2,2740.7,1.8243485]
[1643694894034,2.4079386,2741.2,2740.7,1.8243485]
[1643694894248,1.53801561,2741.1,2740.7,1.8243485]
[1643694896899,2.4079386,2741.2,2740.7,1.8243485]
[1643694897089,1.53801561,2741.1,2740.7,1.8243485]
[1643694899334,1.53801561,2741.1,2741.0,0.82654521]
[1643694899538,1.53801561,2741.1,2741.0,1.73863291]
[1643694899767,1.53801561,2741.2,2741.0,2.16944521]
[1643694899938,1.53801561,2741.1,2741.0,2.16944521]
[1643694900354,1.53801561,2741.2,2741.0,0.52875505]
[1643694900535,1.53801561,2741.1,2741.0,0.52875505]
[1643694900937,1.53801561,2741.2,2741.0,0.52875505]
[1643694901148,1.53801561,2741.1,2741.0,1.44084275]
[1643694901546,1.53801561,2741.1,2741.0,3.27332356]
[1643694901752,1.53801561,2741.1,2741.0,3.27834275]
[1643694901939,1.53801561,2741.4,2741.0,1.44084275]
[1643694902147,0.69076785,2741.5,2741.1,0.1824]
[1643694902148,1.53802526,2741.3,2741.1,0.1824]
[1643694902354,1.53802526,2741.2,2741.1,0.1824]
[1643694902591,1.53802526,2741.4,2741.0,1.62304275]
[1643694902793,1.53802526,2741.3,2741.0,1.62304275]
[1643694902984,1.53802526,2741.2,2741.0,1.62304275]
[1643694903184,1.53802526,2741.1,2741.0,1.62304275]
[1643694903385,1.53802526,2741.4,2741.0,1.62304275]
[1643694903595,1.53802526,2741.3,2741.0,1.62304275]
[1643694903784,1.53802526,2741.2,2741.0,1.62304275]
[1643694904027,1.53802526,2741.1,2741.0,1.62304275]
[1643694904184,1.53802526,2741.5,2741.0,3.4801856]
[1643694904390,2.32452039,2741.5,2741.0,1.62304275]
[1643694904607,1.53802526,2741.4,2741.0,1.62304275]
[1643694905986,1.53802526,2741.3,2741.0,1.62304275]
[1643694906186,1.53802526,2741.2,2741.0,1.5251]
[1643694906452,1.53802526,2741.1,2741.0,1.5251]
[1643694906949,0.68752299,2741.5,2741.0,1.5251]
[1643694906950,1.53802526,2741.5,2741.0,1.5251]
[1643694907162,1.53802526,2741.4,2741.0,1.5251]
[1643694908457,1.53802526,2741.3,2741.0,1.5251]
[1643694908660,1.53802526,2741.2,2741.0,1.3429]
[1643694908867,1.53802526,2741.1,2741.0,1.3429]
[1643694909261,1.53802526,2741.4,2741.0,3.18196993]
[1643694909460,1.53802526,2741.4,2741.0,3.48196993]
[1643694909686,1.53802526,2741.3,2741.0,3.48196993]
[1643694909866,1.53802526,2741.2,2741.1,2.1239752]
[1643694910077,1.53802526,2741.2,2741.1,3.99426262]
[1643694910287,1.53802526,2741.2,2741.1,4.31302967]
[1643694910789,2.22554825,2741.7,2741.1,4.31302967]
[1643694910979,2.22554825,2741.7,2741.2,0.9119859]
[1643694911796,2.22554825,2741.7,2741.3,0.3]
[1643694912396,2.22554825,2741.7,2741.2,0.9119859]
[1643694912583,0.1822,2741.6,2741.2,0.9119859]
[1643694912785,1.53802526,2741.5,2741.2,0.9119859]
[1643694912985,1.53802526,2741.5,2741.3,0.93223368]
[1643694913188,1.53802526,2741.5,2741.3,1.23223368]
[1643694913384,1.53802526,2741.4,2741.3,1.23223368]
[1643694913584,1.53802526,2741.6,2741.3,1.23223368]
[1643694913835,1.53802526,2741.6,2741.3,0.3]
[1643694915246,1.53802526,2741.6,2741.2,0.9119859]
[1643694916042,1.53802526,2741.5,2741.2,0.9119859]
[1643694916241,1.53802526,2741.4,2741.2,0.9119859]
[1643694916641,1.53802526,2741.3,2741.2,0.9119859]
[1643694916842,2.22554825,2741.6,2741.2,0.9119859]
[1643694917799,1.53802526,2741.5,2741.2,0.9119859]
[1643694917999,1.53802526,2741.4,2741.2,0.9119859]
[1643694918416,1.53802526,2741.3,2741.2,0.9119859]
[1643694918605,1.53802526,2741.6,2741.2,0.9119859]
[1643694919200,2.22554825,2741.6,2741.2,0.9119859]
[1643694919402,1.53802526,2741.6,2741.2,0.9119859]
[1643694919601,2.22554825,2741.6,2741.2,0.9119859]
[1643694919802,1.53802526,2741.5,2741.2,0.9119859]
[1643694920106,1.53802526,2741.4,2741.2,0.9119859]
[1643694920415,1.53802526,2741.3,2741.1,1.41411407]
[1643694920611,1.53802526,2741.2,2741.1,1.41411407]
[1643694920907,1.53802526,2741.2,2741.1,3.39638357]
[1643694921110,1.53802526,2741.5,2741.1,3.69638357]
[1643694921334,1.53802526,2741.4,2741.1,3.69638357]
[1643694921536,1.53802526,2741.3,2741.1,3.69638357]
[1643694921735,1.53802526,2741.3,2741.2,0.4824]
[1643694922146,1.53802526,2741.6,2741.2,0.4824]
[1643694922353,1.53802526,2741.5,2741.2,0.3]
[1643694922540,2.22554825,2741.7,2741.2,1.2119758]
[1643694923940,2.40774825,2741.7,2741.2,1.2119758]
[1643694924469,1.53802526,2741.6,2741.2,1.2119758]
[1643694925908,0.68752299,2741.5,2741.2,0.9119758]
[1643694927327,2.22554825,2741.5,2741.2,0.9119758]
[1643694928516,1.53802526,2741.4,2741.2,0.9119758]
[1643694928735,1.53802526,2741.3,2741.2,0.9119758]
[1643694929348,1.53802526,2741.5,2741.2,0.9119758]
[1643694929557,1.53802526,2741.4,2741.2,0.9119758]
[1643694929748,1.53802526,2741.3,2741.2,0.9119758]
[1643694929953,1.53802526,2741.6,2741.2,0.9119758]
[1643694930566,2.22554825,2741.6,2741.2,0.9119758]
[1643694930758,0.1822,2741.7,2741.2,0.9119758]
[1643694930759,1.53802526,2741.5,2741.2,0.9119758]
[1643694930950,1.53802526,2741.4,2741.2,0.9119758]
[1643694931349,1.53802526,2741.3,2741.2,0.9119758]
[1643694931762,1.53802526,2741.6,2741.2,1.2119758]
[1643694932062,1.53802526,2741.5,2741.2,1.2119758]
[1643694932352,1.53802526,2741.4,2741.2,1.2119758]
[1643694932594,1.53802526,2741.3,2741.2,1.2119758]
[1643694932997,0.86972299,2741.7,2741.2,1.2119758]
[1643694932998,1.53802526,2741.6,2741.2,1.2119758]
[1643694933211,1.53802526,2741.5,2741.2,1.2119758]
[1643694933397,1.53802526,2741.4,2741.2,1.2119758]
[1643694933596,1.53802526,2741.6,2741.2,1.2119758]
[1643694933809,1.53802526,2741.6,2741.3,0.3]
[1643694934199,1.53802526,2741.5,2741.4,1.8239631]
[1643694934598,2.22554825,2741.7,2741.4,1.8239631]
[1643694934806,1.53802526,2741.6,2741.4,1.8239631]
[1643694934998,1.53802526,2741.5,2741.4,1.8239631]
[1643694935397,2.22554825,2741.7,2741.4,1.8239631]
[1643694935701,1.53802526,2741.6,2741.4,1.8239631]
[1643694935896,1.53802526,2741.5,2741.4,1.8239631]
[1643694936097,2.22554825,2741.7,2741.4,1.8239631]
[1643694939146,2.22554825,2741.7,2741.4,2.1239631]
[1643694939363,2.22554825,2741.7,2741.4,1.8239631]
[1643694939573,0.68752299,2741.6,2741.4,1.8239631]
[1643694940592,0.68752299,2741.6,2741.4,0.18334463]
[1643694941615,1.53802526,2741.5,2741.4,0.18334463]
[1643694941792,2.22554825,2741.7,2741.4,0.18334463]
[1643694942196,1.53802526,2741.6,2741.4,0.18334463]
[1643694942395,1.53802526,2741.5,2741.4,0.18334463]
[1643694942617,0.68752299,2741.7,2741.4,0.18334463]
[1643694942618,2.22554825,2741.7,2741.4,0.18334463]
[1643694943195,2.22554825,2741.6,2741.5,0.3245018]
[1643694943396,0.68752299,2741.6,2741.5,0.3245018]
[1643694947701,1.77952299,2741.6,2741.5,0.3245018]
[1643694947946,3.31754825,2741.6,2741.5,0.3245018]
[1643694948507,3.31754825,2741.6,2741.5,2.64603341]
[1643694948706,2.63002526,2741.6,2741.5,2.94603341]
[1643694948922,2.63002526,2741.6,2741.5,3.94603341]
[1643694949122,2.63002526,2741.6,2741.5,2.86968815]
[1643694949320,2.62030709,2741.6,2741.5,4.74134288]
[1643694950510,1.40854709,2741.6,2741.5,5.35308288]
[1643694950707,0.68752299,2742.0,2741.5,5.35308288]
[1643694951350,0.68752299,2742.0,2741.6,0.9117948]
[1643694951554,0.68752299,2742.0,2741.6,1.8235948]
[1643694951755,3.85762299,2742.1,2741.6,3.0354568]
[1643694952196,3.85762299,2742.1,2741.7,0.3]
[1643694952358,3.1701,2742.1,2742.0,0.3978456]
[1643694952556,0.91427876,2742.2,2742.0,0.3978456]
[1643694952777,0.91427876,2742.2,2742.0,0.6978456]
[1643694953557,0.91427876,2742.2,2742.0,2.2215374]
[1643694953764,6.89647876,2742.1,2742.0,1.8236918]
[1643694954557,5.9822,2742.1,2742.0,1.8236918]
[1643694956600,5.9822,2742.1,2741.9,0.9118435]
[1643694956809,0.91965284,2742.0,2741.9,0.9118435]
[1643694957001,1.10185284,2742.0,2741.9,0.9118435]
[1643694957603,0.1822,2742.0,2741.3,2.25527866]
[1643694957807,1.62921695,2741.6,2741.4,0.3]
[1643694958103,1.62921695,2741.6,2741.5,1.8240889]
[1643694958308,1.62921695,2741.6,2741.5,2.1240889]
[1643694958531,0.93954805,2741.6,2741.5,2.1240889]
[1643694958702,0.93954805,2741.6,2741.5,1.8240889]
[1643694959952,0.93954805,2741.6,2741.4,2.1241496]
[1643694960163,0.6896694,2741.5,2741.4,2.1241496]
[1643694960348,0.6896694,2741.5,2741.4,2.4241496]
[1643694960549,0.6896694,2741.5,2741.4,0.78355333]
[1643694960751,0.6896694,2741.5,2741.4,0.48355333]
[1643694960959,0.6896694,2741.5,2741.4,0.18355333]
[1643694961149,0.6896694,2741.5,2741.4,0.48355333]
[1643694961450,0.6896694,2741.5,2741.4,0.18355333]
[1643694961654,0.1822,2741.5,2741.0,1.8243278]
[1643694961962,0.68961022,2741.3,2740.9,1.8243877]
[1643694962350,0.68961022,2741.2,2740.9,1.8243877]
[1643694962661,0.1824,2741.1,2740.9,1.8243877]
[1643694962867,0.68961022,2741.3,2740.9,1.8243877]
[1643694963054,0.87201022,2741.4,2741.0,0.6]
[1643694963254,0.68961022,2741.3,2741.0,0.6]
[1643694963455,0.68961022,2741.3,2741.0,0.3]
[1643694963655,0.68961022,2741.3,2741.0,0.74957817]
[1643694964557,0.68961022,2741.3,2741.0,0.44957817]
[1643694965555,0.63961022,2741.3,2741.0,0.44957817]
[1643694965756,0.63961022,2741.3,2741.0,0.74957817]
[1643694966155,0.1824,2741.5,2741.0,0.74957817]
[1643694966356,0.1824,2741.5,2740.9,1.8243877]
[1643694967556,0.1824,2741.5,2741.0,0.37835637]
[1643694967964,0.1824,2741.5,2740.9,1.8243877]
[1643694968364,0.91229,2741.4,2740.9,1.8243877]
[1643694968558,0.1824,2741.3,2740.9,1.8243877]
[1643694969164,0.1824,2741.3,2741.0,0.43916173]
[1643694969373,0.91229,2741.4,2741.0,0.43916173]
[1643694970497,1.7205694,2741.3,2741.0,0.43916173]
[1643694970700,1.5381694,2741.2,2741.0,0.43916173]
[1643694971303,1.5381694,2741.2,2740.9,1.8243877]
[1643694972800,1.5381694,2741.2,2741.0,0.38525934]
[1643694973010,1.5381694,2741.1,2741.0,0.38525934]
[1643694973199,1.5381694,2741.1,2741.0,1.29745204]
[1643694973401,1.5381694,2741.5,2741.0,1.29745204]
[1643694973599,2.06529197,2741.6,2741.0,1.29745204]
[1643694973600,1.5381694,2741.4,2741.0,0.38525934]
[1643694973853,2.06529197,2741.6,2741.0,0.38525934]
[1643694973854,1.5381694,2741.3,2741.0,0.38525934]
[1643694974048,1.5381694,2741.2,2741.0,0.38525934]
[1643694974350,1.5381694,2741.5,2741.0,1.29744334]
[1643694974547,1.15306197,2741.6,2741.0,1.29744334]
[1643694974548,1.5381694,2741.4,2741.0,1.29744334]
[1643694974747,1.5381694,2741.3,2741.0,1.47964334]
[1643694974957,1.15306197,2741.6,2741.0,1.47964334]
[1643694974958,1.5381694,2741.2,2741.0,1.47964334]
[1643694975148,1.5381694,2741.1,2741.0,1.77964334]
[1643694975359,1.5381694,2741.1,2741.0,4.56198356]
[1643694975549,1.5381694,2741.6,2741.0,4.56198356]
[1643694975747,1.8555712,2741.7,2741.0,4.56198356]
[1643694975748,1.5381694,2741.5,2741.0,4.56198356]
[1643694975967,1.5381694,2741.4,2741.0,4.56198356]
[1643694976148,1.5381694,2741.3,2741.0,4.56198356]
[1643694976350,1.5381694,2741.2,2741.0,4.56198356]
[1643694976678,1.5381694,2741.1,2741.0,4.56198356]
[1643694976850,1.5381694,2741.6,2741.0,4.56198356]
[1643694977264,1.5381694,2741.6,2741.0,2.69172334]
[1643694979497,1.8555712,2741.7,2741.0,2.69172334]
[1643694981757,2.0377712,2741.7,2741.0,2.69172334]
[1643694982471,0.6888712,2741.6,2741.0,2.69172334]
[1643694983267,0.6888712,2741.6,2741.0,2.39172334]
[1643694983458,0.6888712,2741.5,2741.0,2.39172334]
[1643694983659,0.1822,2741.4,2741.0,2.20952334]
[1643694985792,0.1822,2741.4,2741.0,2.50952334]
[1643694986201,0.6888712,2741.6,2741.0,2.50952334]
[1643694986394,0.6888712,2741.6,2741.0,2.20952334]
[1643694986593,0.6888712,2741.5,2741.0,2.50952334]
[1643694987394,0.6888712,2741.6,2741.0,2.50952334]
[1643694987594,0.6888712,2741.5,2741.0,2.20952334]
[1643694987800,0.6888712,2741.5,2741.0,2.50952334]
[1643694987995,0.6888712,2741.6,2741.0,2.50952334]
[1643694988207,0.6888712,2741.6,2741.1,0.1822]
[1643694988395,0.6888712,2741.6,2741.0,2.50952334]
[1643694988396,0.6888712,2741.6,2741.0,2.14512335]
[1643694989061,0.6888712,2741.5,2741.0,2.14512335]
[1643694991165,0.1822,2741.4,2741.0,1.84512335]
[1643694991359,0.1822,2741.4,2741.0,2.14512335]
[1643694992458,0.6888712,2741.5,2741.0,2.14512335]
[1643694992695,0.6888712,2741.5,2741.3,0.91213]
[1643694993110,0.6888712,2741.5,2741.4,0.3]
[1643694994900,0.71998512,2741.5,2741.4,0.3]
[1643694995111,0.71998512,2741.5,2741.2,0.9121299]
[1643694995321,0.1822,2741.4,2741.2,0.9121299]
[1643694995498,0.6888712,2741.5,2741.2,0.9121299]
[1643694996107,0.6888712,2741.4,2741.2,0.9121299]
[1643694999251,0.1822,2741.6,2741.2,0.9121299]
[1643694999252,0.6888712,2741.5,2741.3,0.3]
[1643695001021,0.6888712,2741.5,2741.3,1.25158486]
[1643695001436,1.5378171,2741.4,2741.3,4.01171489]
[1643695001625,0.91955854,2741.9,2741.3,4.01171489]
[1643695001825,0.91955854,2741.9,2741.3,3.39963489]
[1643695002025,0.91955854,2741.9,2741.4,0.91184]
[1643695003125,0.91955854,2741.9,2741.4,1.8236723]
[1643695003332,0.91955854,2741.9,2741.5,2.306]
[1643695003527,0.91955854,2741.9,2741.6,1.31859563]
[1643695003740,1.5378171,2741.8,2741.7,0.1822]
[1643695003955,0.91955854,2742.1,2741.7,0.1822]
[1643695004158,2.90906729,2742.3,2741.7,0.9118779]
[1643695004159,0.91955854,2742.0,2741.7,0.9118779]
[1643695004360,1.7200171,2741.9,2741.7,0.9118779]
[1643695004582,1.5378171,2741.8,2741.6,3.32455143]
[1643695004966,1.5378171,2741.7,2741.6,3.32455143]
[1643695005276,0.91955854,2742.0,2741.6,2.41266143]
[1643695005461,0.91955854,2742.0,2741.7,2.7357741]
[1643695007600,0.1822,2741.9,2741.7,1.8238441]
[1643695007804,0.91955854,2741.8,2741.7,1.8238441]
[1643695008205,1.5378171,2741.9,2741.7,1.8238441]
[1643695008206,0.91955854,2741.9,2741.7,1.8238441]
[1643695008435,0.91955854,2741.9,2741.7,0.18358899]
[1643695009006,2.45737564,2741.8,2741.6,2.23046143]
[1643695009207,1.10185854,2741.8,2741.6,2.23046143]
[1643695009408,1.5378171,2741.7,2741.6,2.23046143]
[1643695009608,1.5378171,2741.8,2741.6,2.53046143]
[1643695009811,2.45737564,2741.8,2741.6,2.53046143]
[1643695010508,1.5378171,2741.7,2741.6,2.53046143]
[1643695010710,1.5378171,2741.7,2741.6,2.23046143]
[1643695010912,1.5378171,2741.8,2741.6,2.23046143]
[1643695011108,1.10175854,2741.9,2741.6,2.23046143]
[1643695011109,1.5378171,2741.7,2741.6,2.23046143]
[1643695011365,1.5378171,2741.7,2741.6,0.40670563]
[1643695011572,1.5378171,2741.8,2741.6,0.40670563]
[1643695011761,1.5378171,2741.7,2741.6,0.40670563]
[1643695012161,2.46916621,2742.1,2741.6,0.40670563]
[1643695012351,0.1823,2741.8,2741.6,0.40670563]
[1643695012555,0.1822,2742.0,2741.6,0.40670563]
[1643695012755,0.91212,2741.9,2741.6,0.40670563]